Cogmind - Beta 10.2 @@@ ROGUE MODE // 2021.03.17 @ 15:08:48 Player: Moodge Result: Destroyed by G-34 Mercenary with Small Laser Performance ------------- Evolutions (0) 0 Regions Visited (1) 200 Robots Destroyed (12) 60 Value Destroyed (326) 326 Prototype IDs (0) 0 Alien Tech Used (0) 0 Bonus (0) 0 TOTAL SCORE: 586 Bonus ------- None Cogmind --------- Core Integrity 0/250 Matter 124/300 Energy 79/100 System Corruption 0% Temperature Cool (6) Movement Core (300) Ox5 Location -10/Materials Parts ------- > --- POWER (1) -------- (None) > --- PROPULSION (2) --- (None) > --- UTILITY (2) ------ Large Storage Unit Utility Shielding > --- WEAPON (2) ------- Small Laser > --- INVENTORY (10) --- Ion Engine Ion Engine Aluminum Leg Aluminum Leg Small Storage Unit Peak State ------------ > --- POWER ------------ Light Nuclear Core > --- PROPULSION ------- Light Treads Light Treads > --- UTILITY ---------- Large Storage Unit Utility Shielding > --- WEAPON ----------- Assault Rifle Assault Rifle > --- INVENTORY -------- Ion Engine Ion Engine Small Storage Unit Small Laser Assault Rifle [Rating: 9] Favorites ----------- Power Light Ion Engine Engine Light Ion Engine Power Core Light Nuclear Core Propulsion Light Treads Treads Light Treads Utility Large Storage Unit Storage Large Storage Unit Protection Utility Shielding Weapon Assault Rifle Energy Gun Small Laser Ballistic Gun Assault Rifle Launcher Grenade Launcher Build | -11 -10 ------- Run | Scr Mat Slots Evolved . | . . Power . | . . Propulsion . | . . Utility . | . . Weapon . | . . Parts Attached 15 | 6 9 Power 3 | 1 2 Engine 2 | 1 1 Core 1 | . 1 Reactor . | . . Propulsion 2 | 2 . Treads 2 | 2 . Leg . | . . Wheel . | . . Hover . | . . Flight . | . . Utility 3 | 1 2 Device . | . . Storage 2 | 1 1 Processor . | . . Hackware . | . . Protection 1 | . 1 Artifact . | . . Weapon 7 | 2 5 Energy Gun 1 | . 1 Energy Cannon . | . . Ballistic Gun 5 | 2 3 Ballistic Cannon . | . . Launcher 1 | . 1 Special Weapon . | . . Impact Weapon . | . . Slashing Weapon . | . . Piercing Weapon . | . . Special Melee Weapon . | . . Unidentified Prototypes . | . . Parts Lost 8 | . 8 Power 2 | . 2 Propulsion 2 | . 2 Utility . | . . Weapon 4 | . 4 Highest Loss Streak 6 | . 6 Average Slot Usage (%) 84 | . 84 Engine 7 | . 7 Core 5 | . 5 Treads 24 | . 24 Storage 14 | . 14 Protection 6 | . 6 Ballistic Gun 23 | . 23 Launcher 2 | . 2 Naked Turns . | . . Heaviest Build 26 | 11 26 Greatest Support 40 | 40 40 Greatest Overweight (x) 6 | 2 6 Average Overweight (x) . | . . Largest Inventory Capacity 12 | 6 12 Average Capacity 8 | 5 9 Most Carried 8 | 5 8 Average Carried 4 | 2 4 Final Capacity 10 | 6 10 Final Carried 5 | 2 5 Class Distribution -------------------- 100% | Mutant Dominant Class ---------------- Mutant | -10/Materials Resources | -11 -10 ----------- Run | Scr Mat Matter Collected 438 | 203 235 Remotely . | . . Salvage Created 371 | . 371 Parts 23 | . 23 Haulers Intercepted . | . . Recyclers Shooed 1 | . 1 Parts Field Recycled . | . . Retrieved Matter . | . . Parts Self-Destructed . | . . Prevented . | . . Kills | -11 -10 ------- Run | Scr Mat Combat Hostiles Destroyed 11 | . 11 Guns 8 | . 8 AOE 3 | . 3 Classes Destroyed 3 | . 3 Worker 1 | . 1 Swarmer 3 | . 3 Grunt 8 | . 8 Best Kill Streak 4 | . 4 Combat Bots Only 3 | . 3 Max Kills in Single Turn 2 | . 2 Gunslinging . | . . Exploded 1 | . 1 Melee . | . . Uniques/NPCs Destroyed . | . . Combat | -11 -10 -------- Run | Scr Mat Damage Taken 1135 | . 1135 Core 256 | . 256 Absorbed by Shields . | . . Core Remaining (%) 100 | 100 . Volleys Fired 56 | . 56 Largest 2 | . 2 Hottest 60 | . 60 Shots Fired 93 | . 93 Gun 87 | . 87 Cannon . | . . Launcher 6 | . 6 Special . | . . Kinetic 82 | . 82 Thermal 5 | . 5 Explosive 6 | . 6 Electromagnetic . | . . Robot Hit Streak 10 | . 10 Robot Miss Streak 3 | . 3 Penetration Max . | . . Secondary Targets . | . . Shots Hit Robots 62 | . 62 Core Hits 23 | . 23 Critical Hits 2 | . 2 Critical Kills 1 | . 1 Critical Parts Destroyed 1 | . 1 Melee Attacks . | . . Impact . | . . Slashing . | . . Piercing . | . . Sneak Attacks . | . . Combat Hostiles . | . . Follow-up Attacks . | . . Damage Inflicted 568 | . 568 Guns 396 | . 396 Cannons . | . . Explosions 172 | . 172 Melee . | . . Ramming . | . . Kinetic 374 | . 374 Thermal 22 | . 22 Explosive 172 | . 172 Electromagnetic . | . . Impact . | . . Slashing . | . . Piercing . | . . Highest Corruption . | . . Average Corruption . | . . Corruption Purged . | . . Overload Shots . | . . Overflow Damage . | . . Projectiles . | . . Explosions . | . . Melee . | . . Knockbacks . | . . Impact . | . . Kinetic . | . . Secondary . | . . Self-Inflicted Damage 15 | . 15 Shots 1 | . 1 Rammed . | . . Targets Rammed . | . . Kicked . | . . Crushed . | . . Highest Temperature 16 | . 16 Average Temperature 2 | . 2 Received Heat Transfer 498 | . 498 Siege Activations . | . . Robots Corrupted . | . . Combat Hostiles . | . . Parts Fried . | . . Impact Corruptions . | . . Robots Melted . | . . Combat Hostiles . | . . Parts Melted . | . . Heat Transferred 50 | . 50 Parts Sabotaged . | . . Parts Stolen . | . . Parts Stripped . | . . Power Chain Reactions . | . . Missiles Intercepted . | . . Alert | -11 -10 ------- Run | Scr Mat Peak Influence 235 | . 235 Initial . | . . Average 104 | . 118 Maximum Alert Level 1 | . 1 Low Security (%) 81 | 100 79 Level 1 18 | . 20 Level 2 . | . . Level 3 . | . . Level 4 . | . . Level 5 . | . . High Security . | . . Max Security . | . . Squads Dispatched 3 | . 3 Investigation 3 | . 3 Extermination . | . . Reinforcement . | . . Assault . | . . Garrison . | . . Intercept . | . . Construction Impeded . | . . Haulers Reinforced . | . . Stealth | -11 -10 --------- Run | Scr Mat Distress Signals . | . . Communications Jammed . | . . Distress Signals . | . . Times Spotted 13 | . 13 Peak Tracking Total 3 | . 3 Tactical Retreats 1 | . 1 Traps | -11 -10 ------- Run | Scr Mat Traps Triggered 1 | . 1 Indirectly . | . . Trap Hack Attempts . | . . Triggered . | . . Disarmed . | . . Reprogrammed . | . . Reused . | . . Traps Extracted . | . . Installed . | . . Triggered . | . . Machines | -11 -10 ---------- Run | Scr Mat Machines Disabled 1 | . 1 Max in Single Turn 1 | . 1 Machines Sabotaged . | . . Garrisons Compromised . | . . Overloaded Fab Kills . | . . Fab Network Shutdowns . | . . Hacking | -11 -10 --------- Run | Scr Mat Machines Accessed 2 | . 2 Terminals 1 | . 1 Fabricators . | . . Repair Stations 1 | . 1 Recycling Units . | . . Scanalyzers . | . . Garrison Access . | . . Total Hacks 8 | . 8 Successful 5 | . 5 Failed 3 | . 3 Catastrophic . | . . Database Lockouts . | . . Manual 3 | . 3 Terminals 4 | . 4 Fabricators . | . . Repair Stations 4 | . 4 Recycling Units . | . . Scanalyzers . | . . Garrison Access . | . . Terminal Hacks 1 | . 1 Record 1 | . 1 Fabricator Hacks . | . . Repair Station Hacks 3 | . 3 Scan Component 2 | . 2 Repair 1 | . 1 Recycling Unit Hacks . | . . Scanalyzer . | . . Garrison Access Hacks . | . . Unauthorized Hacks 1 | . 1 Terminals 1 | . 1 Assimilate 1 | . 1 Fabricators . | . . Repair Stations . | . . Recycling Units . | . . Scanalyzers . | . . Garrison Access . | . . Data Cores Recovered . | . . Used . | . . Hacking Detections 2 | . 2 Full Trace Events 2 | . 2 Feedback Events . | . . Feedback Blocked . | . . Robot Schematics Acquired . | . . Robots Built . | . . Matter . | . . Time . | . . Total Robot Build Rating . | . . Part Schematics Acquired . | . . Parts Built . | . . Matter . | . . Time . | . . Total Part Build Rating . | . . Parts Repaired 1 | . 1 Time 26 | . 26 Parts Recycled . | . . Recycled Matter . | . . Retrieved Matter . | . . Retrieved Components . | . . Parts Scanalyzed . | . . Part Schematics Acquired . | . . Parts Damaged . | . . Bothacking | -11 -10 ------------ Run | Scr Mat Used RIF Installer . | . . Robots Hacked . | . . Non-combat . | . . Combat . | . . Robot Hacks Applied . | . . Relay Couplers Released . | . . Robots Rewired . | . . Allies Hacked . | . . Hacks Repelled . | . . Allies | -11 -10 -------- Run | Scr Mat Total Allies . | . . Largest Group . | . . Highest-Rated Group . | . . Highest-Rated Ally . | . . Total Orders . | . . Ally Attacks . | . . Total Damage . | . . Kills . | . . Allies Corrupted . | . . Allies Melted . | . . Intel | -11 -10 ------- Run | Scr Mat Robot Analysis Total . | . . Derelict Logs Recovered . | . . Drone Launches . | . . Drone Recoveries . | . . Exploration | -11 -10 ------------- Run | Scr Mat Turns Passed 553 | 66 487 Spaces Moved 207 | 40 167 Core 20 | 19 1 Treads 187 | 21 166 Legs . | . . Wheels . | . . Hover . | . . Flight . | . . Fastest Speed 50 | 50 160 Average Speed 156 | 135 161 Slowest Speed 350 | 160 350 Overloaded Moves . | . . Propulsion Burnouts . | . . Robots Hopped . | . . Cave-ins Triggered . | . . Exploration Rate (%) 17 | 3 32 Regions Visited 1 Branch Regions . Pre-discovered Areas . | . . Known Exits Taken . | . . Unknown Exits Taken 1 | 1 . Scrap Searched . | . . Spaces Dug . | . . Terrain Destroyed 30 | . 30 Melee . | . . Projectile . | . . AOE 30 | . 30 Terrain Rammed . | . . Walls Destroyed . | . . Machines Disabled . | . . Actions | -11 -10 --------- Run | Scr Mat Total 344 | 52 292 Wait 50 | . 50 Move 206 | 39 167 Hop . | . . Pick Up 16 | 7 9 Fast Attach 1 | 1 . Attach 12 | 5 7 Detach 1 | . 1 Swap 2 | . 2 Drop . | . . Fire 56 | . 56 Melee . | . . Ram . | . . Kick . | . . Crush . | . . Escape Stasis . | . . Rewire . | . . Trap . | . . Miscellaneous . | . . Route ------- -11/Scrapyard -10/Materials (discovered 1 exit: [*Min]) History --------- Turn | Location | Event 7 | -11/Scrapyard | Discovered new exit (range 15) 67 | -11/Scrapyard | Entered Materials 219 | -10/Materials | Repaired Grenade Launcher? 306 | -10/Materials | Build established: Mutant 416 | -10/Materials | Discovered new exit (range 11) 521 | -10/Materials | Core integrity fell below 50% 528 | -10/Materials | Core integrity fell below 20% 554 | -10/Materials | Destroyed by G-34 Mercenary with Small Laser Last Messages --------------- 00416_ EXIT=FOUND 00416_ Acquired Lgt. Assault Rifle. 00425_ R-06 Scavenger collects Heat Sink. 00429_ R-06 Scavenger collects Sml. Laser. 00474_ Lgt. Treads destroyed. 00484_ G-34 Mercenary destroyed. 00491_ R-06 Scavenger collects Aluminum Leg. 00495_ R-06 Scavenger collects Sml. Laser. 00510_ Lgt. Nuclear Core destroyed. 00515_ Assault Rifle destroyed. 00522_ Lgt. Treads destroyed. 00527_ G-34 Mercenary destroyed. 00540_ G-34 Mercenary suffers critical hit. 00540_ Destroyed Aluminum Leg. 00540_ Assault Rifle destroyed. 00544_ K-01 Serf collects debris. 00545_ Lgt. Assault Rifle destroyed. 00548_ K-01 Serf collects debris. 00551_ G-34 Mercenary destroyed. 00551_ K-01 Serf collects debris. Map ----- +----------------------------------------------------+ | # """ #?????????????? | | #########+######+#### #?????????????? | | ##?# # # ##! """ #?????????????? | | ???## # # ## """ #?????????????? | | ????###!! # ## """ #?????????????? | | ?######!!! # ## #?????????????? | | ?# #!! # #########?????????????? | | ?# " # # #?????????????????????? | | ?# T #####+########?????????????????????? | | ?# " #??# #??????????????????????? | | ?# #### ##########?????????????? | | ?# + # #?????????????? | | ?# ######### # #?????????????? | | ?# #???????# # #?????????????? | | ?# ######### # #?????????????? | | ####### !# + #?????????????? | | + * + # #?????????????? | | ####### # # #?????????????? | | ??????######### # [ #?????????????? | | ????????????? # g #?????????????? | | ???????????? #######/##?????????????? | | ??????????? #?????# #??????????????? | | ?????????? ######?????# #??????????????? | | ?????????# ???????????# #??????????????? | | ?????????# ?????######## ##### #??????? | | ?????????# k @ #??????? | | ?????????# ^ a *%= + ""?? | | ?????????# k # ""?? | | ??????????? ######+### #??????? | | ??????????? ??????? ??? #??????? | | ???????????? ???????? ??? #??????? | | ???????????? ^ ?????????? ???????????? | | ???????????? ^""??????????? #??????????? | | ????????????? "???????????? #??????????? | | ????????????????????????????? #??????????? | | ?????????????????????????????##??????????? | | ?????????????????????????????????????????? | | ?????????????????????????????????????????? | | ?????????????????????????????????????????? | | ?????????????????????????????????????????? | | ?????????????????????????????????????????? | | ?????????????????????????????????????????? | | ?????????????????????????????????????????? | | ?????????????????????????????????????????? | | ?????????????????????????????????????????? | | ?????????????????????????????????????????? | | ?????????????????????????????????????????? | | ?????????????????????????????????????????? | | ?????????????????????????????????????????? | | ?????????????????????????????????????????? | +----------------------------------------------------+ Best States ------------- Heat Dissipation 25 Energy Generation 14 Energy Capacity 250 Matter Stores 243 Matter Capacity 300 Sight Range 16 Terrain Scan Density 10 Utility Shielding 33 Evasion (%) 40 Recoil Reduction 2 Item Schematics ----------------- None Robot Schematics ------------------ None Fabricated ------------ Nothing Alien Tech Used ----------------- None Achievements -------------- None Challenges ------------ None Game ------ Seed DynamicGammaDriver Manual? 0 Play Time 00:08:10 Cumulative 8.7 hours Start 2021.03.17 @ 14:54:50 End 2021.03.17 @ 15:08:48 Sessions 1 Manual Loads 0 Difficulty Rogue Special Mode None Game No. 32 Rogue 32 Adventurer 0 Explorer 0 Win Type - Total 0 Types 0/0/0/0/0/0/0/0/0 Lore% 3 Gallery% 17 Achievement% 16 Wizard Run 0 Options --------- ASCII 0 Keyboard 0 Movement Mouse Keybinds 0 Fullscreen 2 Font 16/SmallcapsGlow Map View 76x50 Tactical HUD 1 Map Filters NONE Filters NONE Steam 1 RUN: 948736a4-080d-4db9-a334-c4361e04c28e